bitfinex/quotes_BTCUSD_20220304
["timestamp","ask_amount","ask_price","bid_price","bid_amount"]
[1646381603009,0.37673273,41731.0,41730.0,0.46456428]
[1646381603211,0.18256369,41731.0,41730.0,0.46456428]
[1646381603414,0.43420706,41731.0,41730.0,0.46456428]
[1646381604311,0.43420706,41731.0,41710.0,0.5991]
[1646381604312,0.364773,41729.0,41712.0,0.807626]
[1646381604511,0.15,41727.0,41711.0,0.01]
[1646381604708,0.22162281,41727.0,41711.0,0.01]
[1646381604911,0.15,41727.0,41711.0,0.01]
[1646381605109,0.19393046,41716.0,41711.0,0.01]
[1646381605911,0.44628858,41716.0,41711.0,0.01]
[1646381606512,0.01197,41725.0,41711.0,0.01]
[1646381606761,0.01197,41726.0,41711.0,0.01]
[1646381607362,0.17789075,41720.0,41711.0,0.01]
[1646381607565,0.17789075,41720.0,41712.0,0.364773]
[1646381607764,0.17789075,41720.0,41712.0,0.464773]
[1646381608065,0.15789075,41720.0,41712.0,0.464773]
[1646381609062,0.15789075,41720.0,41712.0,0.512673]
[1646381609263,0.15789075,41720.0,41712.0,0.1479]
[1646381609563,0.00115558,41715.0,41712.0,0.05]
[1646381609763,0.00115558,41715.0,41711.0,0.014]
[1646381609964,0.19409116,41713.0,41712.0,0.364773]
[1646381610169,0.00115558,41715.0,41711.0,0.014]
[1646381610412,0.00115558,41715.0,41711.0,0.01]
[1646381610613,0.00115558,41715.0,41712.0,0.364773]
[1646381610815,0.00115558,41715.0,41712.0,0.412673]
[1646381611014,0.00115558,41715.0,41713.0,0.0479]
[1646381611316,0.00115558,41715.0,41714.0,0.336787]
[1646381611914,0.00115558,41715.0,41714.0,0.33686984]
[1646381615388,0.01197,41728.0,41715.0,0.75]
[1646381615585,0.01197,41733.0,41715.0,0.05]
[1646381615786,0.22857334,41720.0,41715.0,0.05]
[1646381615984,0.22807,41733.0,41716.0,0.364773]
[1646381616184,0.22807,41733.0,41715.0,0.05]
[1646381616387,0.21995925,41726.0,41714.0,8.284e-05]
[1646381617185,0.21995925,41726.0,41713.0,0.00307781]
[1646381617386,1.68739521,41727.0,41714.0,0.364773]
[1646381617589,0.2161,41733.0,41716.0,0.286746]
[1646381617787,0.2161,41733.0,41717.0,0.0442]
[1646381618016,0.4983,41736.0,41718.0,0.664736]
[1646381618216,0.2284,41737.0,41719.0,0.0442]
[1646381618412,0.42399782,41735.0,41720.0,0.43470044]
[1646381618613,0.42399782,41735.0,41722.0,0.28664]
[1646381618614,0.22525162,41732.0,41722.0,0.28664]
[1646381618812,0.22525162,41732.0,41723.0,0.0442]
[1646381619013,0.2099761,41735.0,41724.0,0.364738]
[1646381619214,0.2099761,41735.0,41724.0,0.414773]
[1646381619414,0.2099761,41735.0,41724.0,0.05]
[1646381619614,0.2099761,41735.0,41725.0,0.0442]
[1646381619615,0.38691745,41735.0,41725.0,0.0442]
[1646381619815,0.2099761,41735.0,41725.0,0.0942]
[1646381620017,0.28240047,41733.0,41725.0,0.0442]
[1646381620213,0.2099761,41735.0,41726.0,0.05]
[1646381620615,0.2099761,41735.0,41725.0,0.0442]
[1646381621015,0.2099761,41735.0,41726.0,0.364773]
[1646381621219,0.2099761,41735.0,41726.0,0.458973]
[1646381621672,0.01197,41743.0,41726.0,0.458973]
[1646381621673,0.01197,41743.0,41736.0,0.286486]
[1646381621875,0.01197,41743.0,41735.0,0.52810996]
[1646381621876,0.01196,41747.0,41735.0,0.52810996]
[1646381622071,0.01196,41747.0,41735.0,0.57810996]
[1646381622273,0.15,41748.0,41735.0,0.57810996]
[1646381622470,0.15,41748.0,41736.0,0.364773]
[1646381622471,0.27130748,41742.0,41736.0,0.364773]
[1646381622671,0.15,41748.0,41736.0,0.364773]
[1646381622871,0.15,41748.0,41735.0,0.57810996]
[1646381623071,0.19592547,41744.0,41736.0,0.364773]
[1646381623474,0.001,41747.0,41735.0,0.57810996]
[1646381623672,0.001,41747.0,41736.0,0.364773]
[1646381623673,0.22628646,41738.0,41736.0,0.364773]
[1646381623872,0.21903263,41740.0,41736.0,0.364773]
[1646381624072,0.21903263,41740.0,41736.0,0.286387]
[1646381624073,2.58881626,41737.0,41736.0,0.286387]
[1646381624275,2.58881626,41737.0,41735.0,0.57810996]
[1646381624473,2.78368234,41737.0,41735.0,0.57810996]
[1646381624673,2.58881626,41737.0,41735.0,0.57810996]
[1646381624873,2.87800979,41737.0,41735.0,0.57810996]
[1646381625715,0.001,41739.0,41736.0,0.0442]
[1646381625915,1.25,41736.0,41730.0,0.002]
[1646381626116,0.64352458,41735.0,41730.0,0.002]
[1646381626315,0.364773,41735.0,41721.0,8.228e-05]
[1646381626512,1.25,41736.0,41721.0,8.228e-05]
[1646381626713,1.68736502,41736.0,41721.0,8.228e-05]
[1646381626915,0.15411451,41731.0,41721.0,8.228e-05]
[1646381627114,1.890163,41725.0,41721.0,8.228e-05]
[1646381627313,0.15411451,41731.0,41721.0,0.364773]
[1646381627513,0.15411451,41731.0,41720.0,8.848e-05]
[1646381628313,0.15411451,41731.0,41721.0,0.364773]
[1646381628714,0.15411451,41731.0,41721.0,0.414773]
[1646381628913,0.15411451,41731.0,41721.0,0.05]
[1646381629167,0.15411451,41731.0,41720.0,0.00408848]
[1646381630366,0.15411451,41731.0,41720.0,8.848e-05]
[1646381630565,0.15411451,41731.0,41721.0,0.364773]
[1646381630765,0.15411451,41731.0,41721.0,0.414773]
[1646381631068,0.15411451,41731.0,41721.0,0.05]
[1646381631266,0.15411451,41731.0,41720.0,8.848e-05]
[1646381631466,0.15411451,41731.0,41719.0,0.00491586]
[1646381631865,0.15411451,41731.0,41723.0,8.968e-05]
[1646381632065,2.58390344,41726.0,41723.0,8.968e-05]
[1646381633529,2.58390344,41726.0,41724.0,0.364755]
[1646381633731,2.58390344,41726.0,41723.0,8.968e-05]
[1646381633929,2.58390344,41726.0,41724.0,0.364754]
[1646381634131,0.2161,41738.0,41724.0,0.414754]
[1646381634330,0.01197,41740.0,41725.0,0.3]
[1646381634530,0.01197,41740.0,41723.0,8.968e-05]
[1646381635030,0.20982774,41736.0,41723.0,8.968e-05]
[1646381635329,0.20982774,41736.0,41723.0,0.30008968]
[1646381635529,0.23225375,41735.0,41724.0,0.286607]
[1646381635730,0.23225375,41735.0,41724.0,0.336607]
[1646381636761,0.20982774,41736.0,41724.0,0.336607]
[1646381636962,0.20982774,41736.0,41725.0,8.55e-05]
[1646381637169,0.20982774,41736.0,41725.0,0.2866845]
[1646381637363,0.20982774,41736.0,41726.0,0.35]
[1646381637564,0.20982774,41736.0,41727.0,0.364727]
[1646381637766,0.48454463,41736.0,41727.0,0.414727]
[1646381637962,0.20982774,41736.0,41727.0,0.714727]
[1646381638163,0.20982774,41736.0,41727.0,0.414727]
[1646381638866,0.20964019,41736.0,41727.0,0.414727]
[1646381639468,1.27507,41744.0,41729.0,0.286571]
[1646381639668,0.4943,41751.0,41730.0,0.0442]
[1646381639864,0.28804212,41742.0,41731.0,0.664688]
[1646381640065,0.81869878,41752.0,41732.0,0.0442]
[1646381640269,0.53406,41752.0,41733.0,0.286534]
[1646381640519,0.21020599,41745.0,41735.0,0.364651]
[1646381640718,0.21020599,41745.0,41735.0,0.414651]
[1646381641322,0.25452512,41740.0,41735.0,0.414651]
[1646381641716,0.21020599,41745.0,41735.0,0.458851]
[1646381641917,0.5221,41752.0,41737.0,0.286509]
[1646381642119,0.5221,41752.0,41736.0,0.3]
[1646381642120,0.05,41752.0,41739.0,0.36461]
[1646381642319,1.51836,41756.0,41737.0,0.05]
[1646381642520,0.97831068,41756.0,41738.0,0.664773]
[1646381642724,0.27388312,41747.0,41738.0,0.714773]
[1646381642920,0.18005125,41750.0,41738.0,0.714773]
[1646381643120,0.18005125,41750.0,41740.0,0.28633]
[1646381643323,0.18005125,41750.0,41740.0,0.33633]
[1646381644362,0.20662232,41746.0,41740.0,0.33633]
[1646381644562,0.18005125,41750.0,41740.0,0.33633]
[1646381645662,0.21914015,41746.0,41740.0,0.33633]
[1646381646063,0.18005125,41750.0,41740.0,0.33633]
[1646381647262,0.18005125,41750.0,41743.0,0.364731]
[1646381647464,0.18005125,41750.0,41743.0,0.414731]
[1646381648415,0.23005125,41750.0,41743.0,0.414731]
[1646381648712,0.23005125,41750.0,41743.0,0.05]
[1646381648912,0.23005125,41750.0,41742.0,0.00016465]
[1646381649316,0.23005125,41750.0,41743.0,0.05]
[1646381649514,0.23005125,41750.0,41742.0,0.00016465]
[1646381649715,0.27899154,41748.0,41742.0,0.00016465]
[1646381649914,0.23005125,41750.0,41742.0,0.00016465]
[1646381650116,0.05,41747.0,41743.0,0.364773]
[1646381650418,0.23005125,41750.0,41744.0,0.364773]
[1646381650617,0.23005125,41750.0,41742.0,0.00016465]
[1646381650917,0.23005125,41750.0,41743.0,0.414773]
[1646381651116,0.21465151,41746.0,41744.0,0.364773]
[1646381651317,0.26465151,41746.0,41744.0,0.364773]
[1646381651769,0.26465151,41746.0,41745.0,0.414763]
[1646381652168,0.26465151,41746.0,41745.0,0.41484672]
[1646381652372,0.26465151,41746.0,41745.0,0.05008372]
[1646381652570,0.18005125,41750.0,41746.0,0.26335974]
[1646381652771,0.2360724,41751.0,41746.0,0.26335974]
[1646381653872,0.17933179,41750.0,41746.0,0.26335974]
[1646381655629,0.002,41752.0,41747.0,0.408973]
[1646381656130,0.002,41752.0,41751.0,0.32848155]
[1646381656329,0.0021,41757.0,41751.0,0.37268155]
[1646381656530,0.0021,41757.0,41751.0,0.430371]
[1646381657831,0.0021,41757.0,41751.0,0.380371]
[1646381658031,0.0021,41757.0,41748.0,0.00016331]
[1646381658032,0.0021,41757.0,41748.0,0.05016331]
[1646381658332,0.0021,41757.0,41749.0,0.364773]
[1646381658530,0.28483456,41752.0,41749.0,0.364773]
[1646381658730,0.28483456,41752.0,41750.0,0.0442]
[1646381658930,0.28483456,41752.0,41751.0,0.286151]
[1646381659177,0.28483456,41752.0,41751.0,0.336151]
[1646381660172,0.20146527,41755.0,41751.0,0.336151]
[1646381660372,0.0021,41757.0,41751.0,0.336151]
[1646381661071,0.0021,41757.0,41753.0,0.364736]
[1646381661274,0.0021,41757.0,41753.0,0.414736]
[1646381661475,0.0021,41757.0,41754.0,0.048]
[1646381661674,0.0021,41757.0,41755.0,0.286119]
[1646381661873,0.0021,41757.0,41755.0,0.336119]
[1646381662919,0.0021,41757.0,41755.0,0.386119]
[1646381663117,0.0021,41757.0,41755.0,0.336119]
[1646381663419,0.0021,41757.0,41751.0,8.328e-05]
[1646381663616,0.0021,41757.0,41756.0,0.05]
[1646381664018,0.0021,41757.0,41751.0,0.36485628]
[1646381664218,0.2594505,41755.0,41751.0,0.46485628]
[1646381664618,0.0021,41757.0,41752.0,0.3]
[1646381664821,0.0021,41757.0,41753.0,0.286114]
[1646381665318,0.0021,41757.0,41751.0,0.05008328]
[1646381665519,0.0021,41757.0,41752.0,0.286112]
[1646381665717,0.20807973,41753.0,41752.0,0.364773]
[1646381665918,0.41288541,41753.0,41751.0,0.28620428]
[1646381666119,0.41288541,41753.0,41751.0,0.33620428]
[1646381666518,0.41288541,41753.0,41751.0,0.05008328]
[1646381667267,0.41288541,41753.0,41750.0,0.00408036]
[1646381667268,0.41288541,41753.0,41750.0,0.004]
[1646381668268,0.41288541,41753.0,41747.0,0.001]
[1646381668468,0.7076321,41753.0,41746.0,0.26335974]
[1646381668669,0.364773,41752.0,41746.0,0.26335974]
[1646381668869,0.42484541,41753.0,41746.0,0.26335974]
[1646381669270,0.364773,41752.0,41746.0,0.26335974]
[1646381670617,0.364773,41751.0,41746.0,0.26335974]
[1646381670818,0.364773,41752.0,41746.0,0.26335974]
[1646381671634,0.41288541,41753.0,41746.0,0.26335974]
[1646381672018,0.364773,41751.0,41746.0,0.26335974]
[1646381672219,0.41288541,41753.0,41749.0,8.051e-05]
[1646381672419,0.364773,41752.0,41749.0,8.051e-05]
[1646381672622,0.354773,41752.0,41749.0,8.051e-05]
[1646381673720,0.254773,41752.0,41749.0,8.051e-05]
[1646381675366,0.17083645,41754.0,41749.0,8.051e-05]
[1646381675367,0.004,41754.0,41749.0,8.051e-05]
[1646381675565,0.004,41754.0,41749.0,0.36478751]
[1646381675765,0.004,41754.0,41749.0,0.41478751]
[1646381676165,0.004,41754.0,41749.0,0.05008051]
[1646381676365,0.0021,41757.0,41749.0,8.051e-05]
[1646381676366,0.17552889,41756.0,41749.0,8.051e-05]
[1646381676966,2.71735771,41756.0,41749.0,8.051e-05]
[1646381677168,2.71235771,41756.0,41749.0,8.051e-05]
[1646381677366,0.16156293,41750.0,41749.0,0.36478751]
[1646381677567,0.15870288,41749.0,41748.0,8.009e-05]
[1646381678218,0.0021,41757.0,41748.0,8.009e-05]
[1646381678619,0.364707,41756.0,41748.0,8.009e-05]
[1646381678817,0.43337993,41751.0,41748.0,8.009e-05]
[1646381679019,0.23027069,41751.0,41748.0,8.009e-05]
[1646381679419,0.17031466,41749.0,41748.0,8.009e-05]
[1646381679622,0.00136385,41753.0,41748.0,8.009e-05]
[1646381679918,0.16326689,41753.0,41748.0,8.009e-05]
[1646381680120,0.16265771,41753.0,41748.0,8.009e-05]
[1646381680619,0.20884276,41749.0,41748.0,8.009e-05]
[1646381681220,0.00075467,41753.0,41748.0,0.36478709]
[1646381681421,0.00075467,41753.0,41748.0,8.009e-05]
[1646381681668,0.28402334,41753.0,41748.0,8.009e-05]
[1646381682270,0.18570273,41750.0,41748.0,8.009e-05]
[1646381682472,0.18570273,41750.0,41749.0,7.726e-05]
[1646381683271,0.85040973,41750.0,41749.0,7.726e-05]
[1646381684272,0.85040973,41750.0,41746.0,0.21343991]
[1646381684472,0.85040973,41750.0,41740.0,0.349174]
[1646381684473,0.364707,41746.0,41740.0,0.349174]
[1646381684671,0.348,41745.0,41740.0,0.349174]
[1646381684871,0.2272519,41743.0,41740.0,0.349174]
[1646381685072,0.664707,41742.0,41740.0,0.349174]
[1646381685274,0.2272519,41743.0,41740.0,0.349174]
[1646381685275,0.84119581,41741.0,41740.0,0.349174]
[1646381687724,0.47648881,41741.0,41740.0,0.349174]
[1646381688024,0.84119581,41741.0,41740.0,0.349174]
[1646381689374,0.8432791,41741.0,41740.0,0.349174]
[1646381691880,0.8432791,41741.0,41725.0,1.2984]
[1646381691881,0.15661725,41728.0,41725.0,1.2984]
[1646381692080,0.3,41736.0,41733.0,0.3132345]
[1646381692282,0.47206128,41739.0,41733.0,0.3632345]
[1646381692482,0.364707,41738.0,41733.0,0.3632345]
[1646381693330,0.364707,41738.0,41733.0,0.3132345]
[1646381693828,0.93979635,41737.0,41733.0,0.3132345]
[1646381694030,0.364707,41734.0,41733.0,0.3132345]
[1646381694230,0.664707,41734.0,41733.0,0.3132345]
[1646381694928,0.91753547,41734.0,41733.0,0.3132345]
[1646381695730,0.61753547,41734.0,41733.0,0.3132345]
[1646381696133,0.91753547,41734.0,41733.0,0.3132345]
[1646381696334,0.61753547,41734.0,41733.0,0.3132345]
[1646381697564,0.44084374,41734.0,41733.0,0.3132345]
[1646381697764,0.80555074,41734.0,41733.0,0.3132345]
[1646381697964,1.10555074,41734.0,41733.0,0.3132345]
[1646381698165,0.80555074,41734.0,41733.0,0.3132345]
[1646381698465,0.61753547,41734.0,41733.0,0.3132345]
[1646381699064,0.61921756,41734.0,41733.0,0.3132345]
[1646381700266,0.66721756,41734.0,41733.0,0.3132345]
[1646381700523,0.61921756,41734.0,41733.0,0.3132345]
[1646381702323,0.82314095,41734.0,41733.0,0.3132345]
[1646381702522,0.82314095,41734.0,41733.0,0.31331616]
[1646381703725,1.56124095,41734.0,41733.0,0.31331616]
[1646381704366,0.61921756,41734.0,41733.0,0.31331616]
[1646381704571,0.62358519,41734.0,41733.0,0.31331616]
[1646381705466,0.79091878,41734.0,41733.0,0.31331616]
[1646381706570,1.36168519,41734.0,41733.0,0.31331616]
[1646381706973,1.36168519,41734.0,41733.0,0.30111299]
[1646381707571,1.36168519,41734.0,41733.0,0.29611299]
[1646381708618,1.36168519,41734.0,41733.0,0.21938023]
[1646381708820,1.53703861,41734.0,41733.0,0.18398023]
[1646381709320,1.53703861,41734.0,41733.0,0.48170227]
[1646381709519,0.7381,41732.0,41718.0,0.01197]
[1646381709719,2.294707,41733.0,41718.0,0.01197]
[1646381709720,1.102807,41729.0,41718.0,0.01197]
[1646381709921,0.3,41728.0,41718.0,0.01197]
[1646381710119,0.364707,41727.0,41718.0,0.01197]
[1646381710521,0.20110403,41720.0,41718.0,0.01197]
[1646381710922,0.46360346,41719.0,41718.0,0.01197]
[1646381711122,0.82831046,41719.0,41718.0,0.01197]
[1646381711519,0.20110403,41720.0,41718.0,0.01197]
[1646381712970,0.00436763,41719.0,41718.0,0.01197]
[1646381713769,0.00436763,41719.0,41708.0,0.4097]
[1646381713969,0.00436763,41719.0,41709.0,2.1]
[1646381714170,0.00436763,41719.0,41709.0,2.05]
[1646381714772,0.17545271,41713.0,41709.0,2.05]
[1646381714970,0.22545271,41713.0,41709.0,2.05]
[1646381716019,0.00436763,41712.0,41709.0,2.05]
[1646381716317,0.66907463,41712.0,41709.0,2.0]
[1646381716516,0.36907463,41712.0,41709.0,2.0]
[1646381716715,0.00436763,41712.0,41709.0,2.0]
[1646381717818,0.36907463,41712.0,41709.0,2.0]
[1646381718418,0.64550871,41712.0,41709.0,2.0]
[1646381719017,0.69350871,41712.0,41709.0,2.0]
[1646381719269,1.45,41711.0,41700.0,0.0001]
[1646381719473,0.7381,41709.0,41700.0,0.0001]
[1646381719669,0.664707,41708.0,41700.0,0.0001]
[1646381720268,1.414777,41708.0,41700.0,0.0001]
[1646381720469,0.7381,41704.0,41700.0,0.0001]
[1646381720671,1.450807,41703.0,41700.0,0.0001]
[1646381720868,0.7381,41702.0,41700.0,0.0001]
[1646381721069,0.412707,41701.0,41700.0,0.0001]
[1646381721475,0.91338147,41701.0,41700.0,0.0001]
[1646381721872,1.66347147,41701.0,41700.0,0.0001]
[1646381722071,1.76347147,41701.0,41700.0,0.0001]
[1646381722470,1.83399277,41701.0,41700.0,0.0001]
[1646381722934,1.8383604,41701.0,41700.0,0.0001]
[1646381723331,1.8383604,41701.0,41681.0,0.01]
[1646381723535,0.7381,41696.0,41681.0,0.01]
[1646381723734,0.7381,41694.0,41681.0,0.01]
[1646381724031,0.712707,41695.0,41681.0,0.01]
[1646381724032,0.2436545,41682.0,41681.0,0.01]
[1646381724332,0.1763872,41682.0,41681.0,0.01]
[1646381725033,0.44181394,41682.0,41681.0,0.01]
[1646381725232,0.74181394,41682.0,41681.0,0.01]
[1646381725433,1.10652094,41682.0,41681.0,0.01]
[1646381725632,0.74181394,41682.0,41681.0,0.01]
[1646381726134,1.10652094,41682.0,41681.0,0.01]
[1646381726770,0.74181394,41682.0,41681.0,0.01]
[1646381727171,0.003,41684.0,41681.0,0.01]
[1646381727379,0.003,41684.0,41682.0,0.364707]
[1646381727570,1.85075382,41685.0,41681.0,0.01]
[1646381727571,1.81430961,41685.0,41681.0,0.01]
[1646381727970,1.81430961,41685.0,41682.0,0.364707]
[1646381728172,1.28960961,41685.0,41683.0,0.514707]
[1646381728374,1.28960961,41685.0,41684.0,0.736857]
[1646381728772,0.62894441,41685.0,41684.0,0.736857]
[1646381728973,0.62894441,41685.0,41684.0,0.436857]
[1646381729175,0.63331204,41685.0,41684.0,0.412707]
[1646381729573,0.63331204,41685.0,41684.0,0.562707]
[1646381730172,0.63331204,41685.0,41684.0,0.514707]
[1646381730618,0.63331204,41685.0,41684.0,0.562707]
[1646381731021,0.63331204,41685.0,41684.0,0.412707]
[1646381731223,0.63331204,41685.0,41684.0,0.364707]
[1646381731621,0.63331204,41685.0,41684.0,0.36485863]
[1646381732221,0.63331204,41685.0,41684.0,0.41485863]
[1646381732422,0.63331204,41685.0,41684.0,0.36485863]
[1646381732626,1.30266446,41685.0,41684.0,0.00015163]
[1646381732823,0.63331204,41685.0,41684.0,0.00015163]
[1646381733222,0.68131204,41685.0,41684.0,0.00015163]
[1646381734469,0.63433108,41685.0,41684.0,0.00285494]
[1646381735473,0.00538667,41685.0,41684.0,0.00285494]
[1646381738522,0.05338667,41685.0,41684.0,0.00285494]
[1646381739125,0.05338667,41685.0,41684.0,0.00015163]
[1646381739522,0.00538667,41685.0,41684.0,0.00015163]
[1646381740622,0.82273909,41685.0,41684.0,0.00015163]
[1646381740828,0.92042854,41685.0,41684.0,0.00015163]
[1646381741427,0.87242854,41685.0,41684.0,0.00015163]
[1646381741676,0.91613854,41685.0,41684.0,0.00015163]
[1646381741873,1.65423854,41685.0,41684.0,0.00015163]
[1646381742375,1.66622854,41685.0,41684.0,0.00015163]
[1646381743079,1.65423854,41685.0,41684.0,0.00015163]
[1646381744077,1.60623854,41685.0,41684.0,0.00015163]
[1646381744578,0.7381,41683.0,41665.0,0.7229]
[1646381744778,0.7381,41683.0,41665.0,0.8229]
[1646381744779,0.7381,41679.0,41665.0,0.8229]
[1646381744978,0.256794,41676.0,41665.0,0.8229]
[1646381745182,0.364707,41674.0,41665.0,0.1]
[1646381745425,0.364707,41673.0,41662.0,0.1]
[1646381745629,0.16161865,41671.0,41662.0,0.28408927]
[1646381745826,0.16161865,41671.0,41662.0,0.05]
[1646381746232,0.16161865,41671.0,41661.0,0.5494]
[1646381746428,0.364707,41670.0,41661.0,0.5494]
[1646381746627,0.364707,41670.0,41661.0,0.4494]
[1646381746628,0.16043051,41669.0,41661.0,0.4494]
[1646381746827,0.22334904,41667.0,41661.0,0.4494]
[1646381747426,0.048,41666.0,41661.0,0.4494]
[1646381747631,0.17786777,41664.0,41661.0,0.4494]
[1646381748232,0.36478463,41663.0,41653.0,0.580364]
[1646381748530,7.763e-05,41663.0,41653.0,0.060064]
[1646381749774,7.763e-05,41663.0,41651.0,0.6094]
[1646381749775,0.048,41662.0,41651.0,0.6094]
[1646381750171,7.763e-05,41663.0,41651.0,0.6094]
[1646381750574,7.763e-05,41663.0,41651.0,0.6594]
[1646381750974,7.763e-05,41663.0,41651.0,0.5094]
[1646381751474,0.03645326,41663.0,41651.0,0.5094]
[1646381751875,0.048,41662.0,41651.0,0.5094]
[1646381752074,0.364707,41660.0,41655.0,8.127e-05]
[1646381753331,0.364707,41660.0,41655.0,0.01008127]
[1646381753628,0.21683304,41656.0,41655.0,0.01008127]
[1646381753827,0.58154004,41656.0,41655.0,0.01008127]
[1646381754230,0.4013541,41664.0,41663.0,0.43246225]
[1646381754529,0.4493541,41664.0,41663.0,0.43246225]
[1646381755128,0.66063527,41664.0,41663.0,0.43246225]
[1646381755332,1.12070558,41664.0,41663.0,0.43246225]
[1646381755730,2.1881,41663.0,41655.0,0.01008127]
[1646381755937,0.09768945,41659.0,41655.0,0.01008127]
[1646381756132,0.412707,41658.0,41655.0,0.01008127]
[1646381756431,0.364707,41656.0,41655.0,0.01008127]
[1646381756965,0.73471264,41656.0,41655.0,0.01]
[1646381758666,0.005,41657.0,41655.0,0.01]
[1646381758967,0.005,41657.0,41656.0,0.364707]
[1646381759166,0.005,41657.0,41655.0,0.01]
[1646381759565,0.21587777,41657.0,41656.0,0.048]
[1646381759967,0.005,41657.0,41656.0,0.048]
[1646381760417,0.00093591,41659.0,41656.0,0.048]
[1646381761122,0.00093591,41659.0,41657.0,0.364707]
[1646381761320,0.00093591,41659.0,41655.0,0.01]
[1646381761719,0.00093591,41659.0,41656.0,0.414707]
[1646381762018,0.00093591,41659.0,41656.0,0.05]
[1646381762219,0.00093591,41659.0,41655.0,0.0101427]
[1646381762419,0.00093591,41659.0,41656.0,0.05593886]
[1646381762820,0.00093591,41659.0,41655.0,0.0601427]
[1646381763221,0.18727279,41659.0,41655.0,0.0601427]
[1646381763427,0.364707,41658.0,41655.0,0.0101427]
[1646381763624,0.364707,41656.0,41655.0,0.0101427]
[1646381764022,0.31861242,41657.0,41655.0,0.0101427]
[1646381764270,0.364707,41656.0,41655.0,0.0101427]
[1646381764469,0.31861242,41657.0,41655.0,0.0101427]
[1646381764673,0.364707,41656.0,41655.0,0.0101427]
[1646381765669,0.364707,41656.0,41655.0,0.0101327]
[1646381766071,0.364707,41657.0,41655.0,0.0101327]
[1646381766972,0.64611017,41657.0,41655.0,0.01005882]
[1646381768522,1.102807,41656.0,41655.0,0.01005882]
[1646381769319,0.364707,41656.0,41655.0,0.01005882]
[1646381769521,1.102807,41656.0,41655.0,0.01005882]
[1646381769819,0.46558786,41656.0,41655.0,0.01005882]
[1646381770223,0.46735615,41656.0,41655.0,0.01005882]
[1646381770619,1.20545615,41656.0,41655.0,0.01005882]
[1646381771676,0.46735615,41656.0,41655.0,0.01005882]
[1646381771871,1.20545615,41656.0,41655.0,0.01005882]
[1646381772672,1.20545615,41656.0,41655.0,1e-08]
[1646381774172,1.2063678,41656.0,41655.0,1e-08]
[1646381774572,0.364707,41655.0,41651.0,1e-08]
[1646381774773,0.7381,41652.0,41651.0,1e-08]
[1646381774972,1.31882231,41652.0,41651.0,1e-08]
[1646381776222,1.41882231,41652.0,41651.0,1e-08]
[1646381777323,1.45560248,41652.0,41651.0,1e-08]
[1646381778322,1.45737077,41652.0,41651.0,1e-08]
[1646381778923,1.45846794,41652.0,41651.0,1e-08]
[1646381779769,1.44946184,41652.0,41651.0,1e-08]
[1646381780972,1.44446184,41652.0,41651.0,1e-08]
[1646381781873,1.44446184,41652.0,41651.0,0.00015075]
[1646381784725,0.364707,41646.0,41638.0,1.5241]
[1646381784924,1.02785058,41649.0,41646.0,0.16438483]
[1646381785125,0.365132,41648.0,41646.0,0.16438483]
[1646381785524,0.36690029,41648.0,41646.0,0.16438483]
[1646381785725,0.22452349,41647.0,41646.0,0.16438483]
[1646381785926,0.48082649,41647.0,41646.0,0.16438483]
[1646381786325,1.20492039,41647.0,41646.0,0.16438483]
[1646381786525,0.9803969,41647.0,41646.0,0.16438483]
[1646381786775,0.256303,41647.0,41646.0,0.16438483]
[1646381788775,0.25807129,41647.0,41646.0,0.16438483]
[1646381789175,0.46804446,41647.0,41646.0,0.16438483]
[1646381789377,0.46941023,41647.0,41646.0,0.16438483]
[1646381791619,0.46941023,41647.0,41646.0,0.16453629]
[1646381792018,0.64505805,41647.0,41646.0,0.16453629]
[1646381792618,0.46941023,41647.0,41646.0,0.16453629]
[1646381793619,0.67553183,41647.0,41646.0,0.16453629]
[1646381794019,0.67416606,41647.0,41646.0,0.16748191]
[1646381794879,0.46804446,41647.0,41646.0,0.16748191]
[1646381796778,0.46804446,41647.0,41637.0,1.0]
[1646381796780,0.365132,41645.0,41637.0,1.0]
[1646381796978,0.256303,41643.0,41637.0,0.89]
[1646381797177,0.26817358,41639.0,41637.0,0.89]
[1646381797379,0.7381,41646.0,41637.0,0.89]
[1646381797577,0.00176829,41642.0,41637.0,0.89]
[1646381797778,0.58469454,41640.0,41637.0,0.89]
[1646381798025,0.21956254,41640.0,41637.0,0.89]
[1646381798227,0.365132,41639.0,41637.0,0.89]
[1646381798626,0.365132,41638.0,41637.0,0.89]
[1646381799226,0.21956254,41640.0,41637.0,0.89]
[1646381799426,0.365132,41638.0,41637.0,0.89]
[1646381799626,0.365132,41639.0,41637.0,0.89]
[1646381799826,0.256303,41639.0,41637.0,0.89]
[1646381800628,0.36690029,41638.0,41637.0,0.89]
[1646381802778,0.36690029,41638.0,41637.0,0.84]
[1646381803776,0.62975461,41638.0,41637.0,0.84]
[1646381804177,0.67975461,41638.0,41637.0,0.84]
[1646381804380,0.63186785,41638.0,41637.0,0.84]
[1646381805181,0.61132685,41638.0,41637.0,0.84]
[1646381805628,0.34847253,41638.0,41637.0,0.84]
[1646381806430,0.00103934,41638.0,41637.0,0.89]
[1646381806828,0.00103934,41638.0,41637.0,1.14857874]
[1646381807029,0.00103934,41638.0,41634.0,0.05]
[1646381807229,0.00103934,41638.0,41637.0,7.964e-05]
[1646381809030,0.00103934,41638.0,41637.0,0.36523664]
[1646381809274,0.00103934,41638.0,41637.0,0.41523664]
[1646381809673,0.00297968,41643.0,41637.0,0.41523664]
[1646381809873,0.00097968,41643.0,41638.0,0.060086]
[1646381810476,0.00097968,41643.0,41637.0,0.05007964]
[1646381811274,0.00097968,41643.0,41637.0,7.964e-05]
[1646381811674,0.00097968,41643.0,41640.0,0.20818899]
[1646381812275,0.00097968,41643.0,41640.0,0.25818899]
[1646381814730,0.0020228,41643.0,41640.0,0.25818899]
[1646381814930,0.001,41645.0,41643.0,0.00404559]
[1646381815834,0.001,41645.0,41644.0,0.365157]
[1646381816032,0.5734,41660.0,41644.0,0.365157]
[1646381816033,0.231,41663.0,41646.0,0.02415]
[1646381816232,0.231,41663.0,41653.0,0.19453749]
[1646381816430,0.03569044,41664.0,41653.0,0.19453749]
[1646381816872,0.03569044,41664.0,41653.0,0.41551493]
[1646381817071,0.21589239,41663.0,41653.0,0.24453749]
[1646381817273,0.21589239,41663.0,41655.0,0.060066]